bitfinex/quotes_ETHUSD_20241009
["timestamp","ask_amount","ask_price","bid_price","bid_amount"]
[1728464742164,4.21389431,2436.6,2436.5,0.8006]
[1728464743098,4.731947,2436.6,2436.0,0.7611]
[1728464743268,4.10471,2436.3,2436.0,0.7611]
[1728464744102,4.10452,2436.4,2436.0,0.7611]
[1728464744304,4.1045,2436.4,2436.0,0.7611]
[1728464744605,8.20902,2436.4,2436.0,0.7611]
[1728464744781,8.20902,2436.4,2436.0,1.26845183]
[1728464744978,4.1045,2436.4,2436.0,1.26845183]
[1728464745374,4.21400431,2436.6,2436.1,0.7873]
[1728464745587,4.21400431,2436.6,2436.2,0.7873]
[1728464745991,0.10982431,2436.6,2436.2,0.7873]
[1728464746198,0.10982431,2436.6,2436.4,0.7848]
[1728464746504,0.10982431,2436.6,2436.5,0.7848]
[1728464747981,0.10982431,2436.6,2436.5,0.86687588]
[1728464748190,0.10982431,2436.6,2436.5,0.7848]
[1728464749414,4.21389431,2436.6,2435.9,0.20725835]
[1728464749722,4.21389431,2436.6,2436.0,0.84089133]
[1728464749723,4.10444,2436.4,2436.0,0.84089133]
[1728464751632,4.10444,2436.4,2436.0,0.7588]
[1728464753021,4.10444,2436.4,2436.0,0.84089132]
[1728464753315,8.31806431,2436.6,2436.1,0.7678]
[1728464753501,4.21389431,2436.6,2436.1,0.7678]
[1728464753904,4.21389431,2436.6,2436.1,4.10488]
[1728464754114,4.21389431,2436.6,2436.3,0.7678]
[1728464755095,8.31807431,2436.6,2436.3,0.7678]
[1728464756090,4.21389431,2436.6,2436.3,0.7678]
[1728464756290,8.31812431,2436.6,2436.3,0.7678]
[1728464756485,4.10426,2436.5,2436.3,0.7678]
[1728464756714,4.10424,2436.5,2436.3,0.7678]
[1728464757740,4.10441,2436.4,2436.3,0.7678]
[1728464758024,4.10492,2436.1,2436.0,0.8058]
[1728464760816,4.10492,2436.1,2435.8,0.8153]
[1728464762389,4.10522,2436.0,2435.8,0.8153]
[1728464762707,4.10527,2435.9,2435.6,0.7736]
[1728464763497,0.7556,2436.1,2435.4,0.8268]
[1728464763498,4.10572,2435.7,2435.4,0.8268]
[1728464764313,4.1058,2435.6,2435.4,0.8268]
[1728464764544,4.10593,2435.5,2435.2,0.7926]
[1728464764951,4.86113,2435.8,2435.2,0.7926]
[1728464765247,1.62070333,2435.8,2435.2,0.7926]
[1728464765448,4.10588,2435.6,2435.2,0.7926]
[1728464765604,4.10612,2435.4,2435.2,0.7926]
[1728464766044,4.10627,2435.3,2435.2,0.7926]
[1728464767104,4.1066,2435.1,2435.0,0.7696]
[1728464767455,4.1066,2435.1,2434.7,0.7696]
[1728464767652,4.10687,2435.0,2434.7,0.7696]
[1728464768245,4.10687,2435.0,2434.0,4.10841]
[1728464768246,4.10722,2434.8,2434.2,4.90562]
[1728464768454,4.10722,2434.8,2434.4,0.20648566]
[1728464768620,4.10732,2434.7,2434.4,0.20648566]
[1728464769342,8.21446,2434.8,2434.4,0.20648566]
[1728464769505,9.035906,2434.8,2434.4,0.20648566]
[1728464769703,4.928666,2434.8,2434.2,0.7976]
[1728464769908,4.10764,2434.5,2434.2,0.7976]
[1728464770251,4.61177926,2434.8,2434.2,0.7976]
[1728464770252,4.928606,2434.8,2434.2,0.7976]
[1728464770402,4.10716,2434.8,2434.3,4.19010021]
[1728464772630,4.10716,2434.8,2434.3,0.08215021]
[1728464772937,4.10748,2434.6,2434.2,0.7976]
[1728464773238,4.10764,2434.5,2434.2,0.7976]
[1728464776841,4.10748,2434.6,2434.2,0.7976]
[1728464777302,8.21508,2434.6,2434.2,0.7976]
[1728464777501,4.10748,2434.6,2434.2,0.7976]
[1728464778718,8.21441,2434.8,2434.2,5.91760491]
[1728464778926,4.1073,2434.7,2434.2,5.91760491]
[1728464780446,4.10694,2434.9,2434.3,4.86625]
[1728464780944,4.10718,2434.8,2434.3,4.86625]
[1728464783844,4.10694,2434.9,2434.3,0.7584]
[1728464784050,4.10746,2434.6,2434.3,0.7584]
[1728464784848,4.10728,2434.7,2434.3,0.7584]
[1728464785506,4.1075,2434.6,2434.3,0.7584]
[1728464785910,4.10728,2434.7,2434.3,0.7584]
[1728464786652,4.10712,2434.8,2434.4,0.08215247]
[1728464787028,5.004081,2434.8,2434.4,0.08215247]
[1728464787230,4.10712,2434.8,2434.4,0.08215247]
[1728464787643,4.10712,2434.8,2434.3,4.86624]
[1728464788957,4.10712,2434.8,2434.4,0.08214666]
[1728464790723,4.10712,2434.8,2434.3,4.86624]
[1728464791263,4.10712,2434.8,2434.4,0.08214667]
[1728464791764,4.10712,2434.8,2434.3,4.86624]
[1728464791970,4.10712,2434.8,2434.3,5.763659]
[1728464793836,8.21434,2434.8,2434.3,5.763659]
[1728464794965,4.10712,2434.8,2434.3,5.763659]
[1728464795569,8.21431,2434.8,2434.3,5.763659]
[1728464795768,4.10702,2434.9,2434.4,4.94619667]
[1728464796437,4.10702,2434.9,2434.4,4.18989667]
[1728464796640,4.10702,2434.9,2434.5,0.7513]
[1728464796863,4.10688,2435.0,2434.5,0.7513]
[1728464797175,4.10714,2434.8,2434.5,0.7513]
[1728464798535,8.21436,2434.8,2434.5,0.7513]
[1728464799085,4.10745,2434.6,2434.5,0.7513]
[1728464799250,4.1073,2434.7,2434.1,0.8143]
[1728464799448,0.48629,2434.7,2434.1,0.8143]
[1728464799760,4.1077,2434.5,2434.1,0.8143]
[1728464799950,8.21542,2434.5,2434.1,0.8143]
[1728464800148,4.1077,2434.5,2434.1,0.8143]
[1728464802351,4.10797,2434.3,2434.1,0.8143]
[1728464802552,0.410797,2434.2,2434.1,0.8143]
[1728464802749,8.21606,2434.3,2434.1,0.8143]
[1728464803043,4.10797,2434.3,2434.1,0.8143]
[1728464804675,4.10779,2434.4,2434.1,0.8143]
[1728464805194,4.10766,2434.5,2434.1,0.8143]
[1728464805484,4.10766,2434.5,2434.1,0.89645545]
[1728464807147,4.85773,2434.7,2434.1,0.8143]
[1728464807148,4.1079,2434.4,2434.1,0.8143]
[1728464807648,4.10804,2434.3,2434.1,0.8143]
[1728464808782,4.10796,2434.3,2434.1,0.8143]
[1728464810155,4.10738,2434.7,2434.2,4.8868]
[1728464810355,4.10738,2434.7,2434.4,0.7788]
[1728464810554,4.75042354,2435.1,2434.5,0.7788]
[1728464810555,4.75043354,2435.1,2434.5,0.7788]
[1728464810782,4.10694,2435.0,2434.5,4.88633]
[1728464814969,4.10697,2434.9,2434.5,0.7788]
[1728464815372,4.1072,2434.8,2434.5,0.7788]
[1728464816674,4.10697,2434.9,2434.5,0.7788]
[1728464817073,8.21406,2434.9,2434.5,0.7788]
[1728464817787,4.10697,2434.9,2434.5,0.7788]
[1728464818214,8.21405,2434.9,2434.5,0.7788]
[1728464818507,4.10697,2434.9,2434.5,0.7788]
[1728464818715,8.214,2434.9,2434.5,0.7788]
[1728464819577,4.10697,2434.9,2434.5,0.7788]
[1728464819975,4.10722,2434.8,2434.5,0.7788]
[1728464822113,4.10722,2434.8,2434.2,0.7783]
[1728464822114,4.10745,2434.6,2434.2,0.7783]
[1728464827625,4.20161474,2434.7,2434.2,4.88642]
[1728464827799,8.30898474,2434.7,2434.2,4.88642]
[1728464827998,8.30898474,2434.7,2434.2,0.7783]
[1728464828610,0.09432474,2434.7,2434.4,0.8205]
[1728464836469,4.20163474,2434.7,2434.4,0.8205]
[1728464837967,4.10745,2434.6,2434.4,0.8205]
[1728464838279,4.52762747,2434.6,2434.2,0.824]
[1728464838577,4.10745,2434.6,2434.2,0.824]
[1728464839283,8.21503,2434.6,2434.2,0.824]
[1728464839450,4.10745,2434.6,2434.2,0.824]
[1728464839772,8.21504,2434.6,2434.2,0.824]
[1728464840274,4.10745,2434.6,2434.2,0.824]
[1728464840439,4.10763,2434.5,2434.2,0.824]
[1728464840636,4.10795,2434.3,2433.9,3.758]
[1728464840949,4.10795,2434.3,2433.9,0.758]
[1728464841346,4.10821,2434.2,2433.9,0.758]
[1728464841883,4.10821,2434.2,2433.7,7.10885]
[1728464841884,4.10833,2434.1,2433.7,0.98196769]
[1728464843473,4.10846,2434.0,2433.7,0.98196769]
[1728464843783,4.10846,2434.0,2433.7,0.20456769]
[1728464846380,4.86396,2434.1,2433.7,0.20456769]
[1728464846947,0.7556,2434.1,2433.7,0.20456769]
[1728464847147,4.10849,2434.0,2433.5,4.86118]
[1728464847570,4.10863,2433.9,2433.5,0.752]
[1728464848086,4.10863,2433.9,2433.5,0.95816477]
[1728464848483,4.10849,2434.0,2433.5,0.95816477]
[1728464848981,4.10849,2434.0,2433.5,4.86119]
[1728464849343,4.86389,2434.1,2433.5,6.43803048]
[1728464849689,4.86389,2434.1,2433.6,4.1091]
[1728464850493,4.10824,2434.2,2433.7,0.7528]
[1728464850782,4.10821,2434.2,2433.7,0.7528]
[1728464850991,4.10835,2434.1,2433.7,0.7528]
[1728464851768,4.10835,2434.1,2433.7,0.7528]
[1728464853248,4.10821,2434.2,2433.7,0.7528]
[1728464853452,4.10789,2434.4,2433.9,4.10863]
[1728464853651,4.10756,2434.6,2434.1,4.91296]
[1728464853888,0.09432474,2434.7,2434.3,0.8047]
[1728464853889,4.20160474,2434.7,2434.3,0.8047]
[1728464854190,4.20160474,2434.7,2434.3,0.88685055]
[1728464854885,4.20160474,2434.7,2434.3,0.8047]
[1728464855862,4.10765,2434.5,2433.9,3.0]
[1728464856076,4.10765,2434.5,2434.0,0.7545]
[1728464856077,4.10793,2434.4,2434.0,0.7545]
[1728464858498,8.97098,2434.5,2434.0,4.86295]
[1728464858651,4.86325,2434.5,2434.0,5.760094]
[1728464859351,4.10765,2434.5,2434.0,5.760104]
[1728464859590,4.10765,2434.5,2434.0,5.84226458]
[1728464859779,4.10747,2434.6,2434.1,4.87057]
[1728464859966,4.10747,2434.6,2434.1,4.95272452]
[1728464860167,4.10747,2434.6,2434.1,6.32832486]
[1728464861002,4.10747,2434.6,2434.1,6.24617034]
[1728464862380,4.10765,2434.5,2434.1,0.7624]
[1728464863011,4.1078,2434.4,2434.1,0.7624]
[1728464864905,4.10797,2434.3,2433.9,0.7986]
[1728464865113,4.929532,2434.3,2433.9,0.7986]
[1728464865276,4.10797,2434.3,2433.9,0.7986]
[1728464866377,4.10779,2434.4,2433.9,4.90721]
[1728464867404,4.10779,2434.4,2433.9,5.808798]
[1728464869784,4.10765,2434.5,2434.1,0.8135]
[1728464870118,4.10765,2434.5,2434.1,0.89565522]
[1728464870413,4.10747,2434.6,2434.1,4.92167]
[1728464875098,4.20162474,2434.7,2434.2,4.10812]
[1728464875419,4.20162474,2434.7,2434.3,0.7598]
[1728464876584,4.10745,2434.6,2434.3,0.7598]
[1728464876784,4.20162474,2434.7,2434.3,0.84195041]
[1728464877030,8.30901474,2434.7,2434.3,0.7598]
[1728464877690,4.10764,2434.5,2434.3,0.7598]
[1728464877885,8.21537,2434.5,2434.3,0.7598]
[1728464878318,4.10764,2434.5,2434.3,0.7598]
[1728464880448,8.21539,2434.5,2434.3,0.7598]
[1728464880648,4.10764,2434.5,2434.3,0.7598]
[1728464880852,4.10792,2434.4,2434.1,0.8215]
[1728464881050,4.10796,2434.3,2434.1,0.8215]
[1728464882182,4.10779,2434.4,2434.1,0.8215]
[1728464882345,8.21542,2434.5,2434.1,0.8215]
[1728464882542,4.10785,2434.4,2434.1,0.8215]
[1728464884007,4.10764,2434.5,2434.1,0.8215]
[1728464884801,4.95733474,2434.7,2434.1,1.79792886]
[1728464884970,0.09432474,2434.7,2434.4,0.8004]
[1728464885487,0.09432474,2434.7,2434.6,0.7784]
[1728464888994,4.10763,2434.5,2434.3,0.8275]
[1728464889713,4.10763,2434.5,2434.1,1.03513572]
[1728464890207,4.1076,2434.6,2434.1,1.03513572]
[1728464890403,4.10779,2434.4,2434.1,1.03513572]
[1728464891023,4.10824,2434.2,2433.8,0.8115]
[1728464892025,4.10846,2434.0,2433.8,0.8115]
[1728464892183,4.10846,2434.0,2433.5,4.92409]
[1728464892379,4.10846,2434.0,2433.5,5.12701531]
[1728464892605,4.10846,2434.0,2433.5,6.05065284]
[1728464893002,8.21703,2434.0,2433.5,1.94136284]
[1728464893219,4.10846,2434.0,2433.5,1.94136284]
[1728464893395,4.10846,2434.0,2433.5,6.05064284]
[1728464893797,8.21701,2434.0,2433.5,1.94136284]
[1728464894116,4.10823,2434.2,2433.8,4.1088]
[1728464894316,4.10823,2434.2,2433.7,0.8245]
[1728464894317,4.10821,2434.2,2433.7,0.8245]
[1728464894522,8.21644,2434.2,2433.7,0.8245]
[1728464895233,4.10821,2434.2,2433.7,0.8245]
[1728464895703,4.10789,2434.4,2433.7,5.01551805]
[1728464895704,4.10798,2434.3,2433.7,5.01551805]
[1728464895895,4.10798,2434.3,2433.7,6.01845371]
[1728464896898,4.10798,2434.3,2433.7,10.12729371]
[1728464897099,4.10798,2434.3,2433.8,0.08216772]
[1728464897395,4.10812,2434.2,2433.7,5.93627566]
[1728464898511,4.10812,2434.2,2433.7,10.04513566]
[1728464898845,4.10812,2434.2,2433.8,1.01273036]
[1728464899008,4.10795,2434.3,2433.8,5.12152036]
[1728464899446,4.10795,2434.3,2433.8,1.01273036]
[1728464900453,4.10813,2434.2,2433.8,1.01273036]
[1728464904240,4.10834,2434.1,2433.8,1.01273036]
[1728464904415,4.86373,2434.2,2433.7,0.8245]
[1728464904616,4.10847,2434.0,2433.7,0.8245]
[1728464905852,8.97201,2434.2,2433.7,0.8245]
[1728464906061,4.10833,2434.1,2433.7,0.8245]
[1728464906427,4.10863,2433.9,2433.5,0.20292531]
[1728464906771,8.21821,2433.7,2433.2,0.7842]
[1728464907127,4.10917,2433.6,2433.2,0.7842]
[1728464907466,4.10908,2433.7,2433.2,1.273601]
[1728464907665,4.10914,2433.6,2433.2,1.273601]
[1728464907967,4.10908,2433.7,2433.2,1.273601]
[1728464908420,4.10875,2433.9,2433.3,4.19180654]
[1728464908621,4.10875,2433.9,2433.4,0.7842]
[1728464908622,8.21749,2433.9,2433.4,0.7842]
[1728464908862,8.21748,2433.9,2433.4,1.33074075]
[1728464909028,4.10881,2433.8,2433.4,1.33074075]
[1728464909728,4.10897,2433.7,2433.4,1.33074075]
[1728464910028,8.21804,2433.7,2433.4,0.7842]
[1728464910257,4.10926,2433.6,2433.4,0.7842]
[1728464910462,4.10926,2433.6,2433.1,0.7842]
[1728464910871,4.10947,2433.4,2433.1,0.7842]
[1728464912380,0.09010689,2433.3,2433.1,0.7842]
[1728464913435,0.09010689,2433.3,2433.1,0.86639028]
[1728464913839,0.09010689,2433.3,2433.1,1.79514041]
[1728464914667,0.09010689,2433.3,2433.1,1.71295013]
[1728464916283,0.09010689,2433.3,2433.1,5.90507029]
[1728464916477,0.09010689,2433.3,2433.2,4.89871]
[1728464916777,0.09010689,2433.3,2433.2,4.98089189]
[1728464916943,0.09010689,2433.3,2433.2,6.38241658]
[1728464919657,0.09010689,2433.3,2433.2,2.19042469]
[1728464920785,0.09010689,2433.3,2433.2,0.7889]
[1728464923969,0.09010689,2433.3,2433.2,4.89871]
[1728464928989,0.09010689,2433.3,2433.2,0.7889]
[1728464933198,0.09010689,2433.3,2433.2,4.89871]
[1728464935410,0.09010689,2433.3,2433.2,0.7889]
[1728464936611,0.09010689,2433.3,2433.2,4.89871]
[1728464936827,0.09010689,2433.3,2433.2,6.08786024]
[1728464939511,0.09010689,2433.3,2433.2,7.9234758]
[1728464939878,0.09010689,2433.3,2433.2,10.9234758]
[1728464940016,0.09010689,2433.3,2433.2,10.84129152]
[1728464941953,0.09010689,2433.3,2433.2,9.08786024]
[1728464942117,0.09010689,2433.3,2433.2,7.89871]
[1728464943513,0.09010689,2433.3,2433.2,9.73432188]
[1728464943724,0.09010689,2433.3,2433.2,9.65214128]
[1728464944447,0.09010689,2433.3,2433.2,7.89871]
[1728464947818,0.09010689,2433.3,2433.2,7.98089062]
[1728464948055,0.09010689,2433.3,2433.2,9.58988485]
[1728464948356,0.09010689,2433.3,2433.2,9.50770423]
[1728464951023,0.09010689,2433.3,2433.2,13.30614497]
[1728464951867,0.64397273,2434.4,2433.2,12.33351053]
[1728464952070,0.84992474,2434.7,2434.3,4.10795]
[1728464952279,0.09432474,2434.7,2434.4,4.10768]
[1728464952628,0.09432474,2434.7,2434.3,4.10795]
[1728464953644,0.09432474,2434.7,2434.3,8.2159]
[1728464953977,0.09432474,2434.7,2434.4,4.10778]
[1728464954170,0.09432474,2434.7,2434.5,4.18961834]
[1728464954387,0.09432474,2434.7,2434.5,9.12872834]
[1728464954678,0.09432474,2434.7,2434.6,4.18958868]
[1728464955392,0.09432474,2434.7,2434.3,6.20661891]
[1728464956406,0.09432474,2434.7,2434.4,4.10776]
[1728464956613,0.09432474,2434.7,2434.6,4.10745]
[1728464956986,0.09432474,2434.7,2434.6,4.18958213]
[1728464957869,0.09432474,2434.7,2434.6,4.99748213]
[1728464960194,0.09432474,2434.7,2434.6,4.91535]
[1728464960406,0.09432474,2434.7,2434.6,5.88174433]
[1728464961513,0.09432474,2434.7,2434.6,1.77429433]
[1728464961726,0.09432474,2434.7,2434.6,0.96639433]
[1728464961930,0.09432474,2434.7,2434.5,4.10745]
[1728464962284,0.09432474,2434.7,2434.6,4.10745]
[1728464962682,0.09432474,2434.7,2434.6,4.18958532]
[1728464963183,0.09432474,2434.7,2434.6,4.87555]
[1728464967012,0.09432474,2434.7,2434.6,4.10745]
[1728464967197,0.09432474,2434.7,2434.6,4.99305433]
[1728464967827,0.09432474,2434.7,2434.6,0.88560433]
[1728464969628,0.09432474,2434.7,2434.6,4.99305433]
[1728464977096,0.09432474,2434.7,2434.6,0.88560433]
[1728464977510,0.09432474,2434.7,2434.6,4.99305433]
[1728464982729,0.09432474,2434.7,2434.6,4.99305433]
[1728464994742,0.09432474,2434.7,2434.6,5.07518843]
[1728464995609,0.09432474,2434.7,2434.6,5.87488843]
[1728464997446,0.09432474,2434.7,2434.6,5.79275433]
[1728464998424,0.09432474,2434.7,2434.6,5.87488658]
[1728464998623,0.09432474,2434.7,2434.6,5.79275433]
[1728464999534,0.09432474,2434.7,2434.6,5.87488652]
[1728464999942,0.09432474,2434.7,2434.6,4.99305433]
[1728465000826,0.09432474,2434.7,2434.6,5.84778862]
[1728465001450,0.09432474,2434.7,2434.6,5.76565433]
[1728465001653,0.09432474,2434.7,2434.6,4.99305433]
[1728465002371,0.17356202,2434.7,2434.6,4.99305433]
[1728465003836,0.17356202,2434.7,2434.6,5.07518906]
[1728465004938,0.17356202,2434.7,2434.6,4.99305433]
[1728465006329,0.17356202,2434.7,2434.6,4.10745]
[1728465006843,0.17356202,2434.7,2434.5,4.10761]
[1728465007040,0.17356202,2434.7,2434.4,7.74884329]
[1728465007227,0.17356202,2434.7,2434.4,7.1077]
[1728465007946,0.17356202,2434.7,2434.3,4.10785]
[1728465008252,4.10762,2434.5,2434.0,4.10836]
[1728465008458,0.7556,2434.4,2434.0,4.10836]
[1728465009135,0.7556,2434.4,2433.9,4.10852]
[1728465009136,0.7556,2434.4,2434.1,4.10827]
[1728465009675,0.7556,2434.4,2434.2,4.1902734]
[1728465010229,0.7556,2434.4,2434.3,4.10795]
[1728465010534,0.7556,2434.6,2434.3,4.10795]
[1728465012392,0.7556,2434.6,2434.2,4.9865734]
[1728465012571,4.86307,2434.6,2434.1,6.06135902]
[1728465012883,4.86307,2434.6,2434.1,4.30993802]
[1728465012884,0.7556,2434.5,2434.1,4.30993802]
[1728465013178,0.7556,2434.5,2433.6,4.21049373]
[1728465013179,0.7556,2434.3,2433.7,4.10885]
[1728465013365,0.7556,2434.0,2433.5,4.10919]
[1728465013788,0.7556,2434.0,2433.7,4.10896]
[1728465013949,0.7556,2434.0,2433.8,0.5860381]
[1728465015152,0.7556,2434.0,2433.5,4.1092]
[1728465015361,4.86408,2434.0,2433.7,0.20487369]
[1728465016688,4.86408,2434.0,2433.5,4.1092]
[1728465017859,4.86408,2434.0,2433.4,3.20690988]
[1728465018070,4.86408,2434.0,2433.4,3.0]
[1728465018071,0.7556,2433.8,2433.4,3.0]
[1728465018585,0.7556,2433.8,2433.3,8.21904]
[1728465018846,0.7556,2433.8,2433.3,4.10952]
[1728465019120,0.7556,2433.8,2433.4,4.10943]
[1728465019323,4.8644,2433.8,2433.3,4.10952]
[1728465020720,8.97329,2433.8,2433.3,4.10952]
[1728465020923,4.10899,2433.7,2433.2,7.1098]
[1728465021330,4.10899,2433.7,2433.2,3.0]
[1728465021485,0.7556,2433.6,2433.2,7.10972]
[1728465023845,0.7556,2433.6,2433.2,3.0]
[1728465024040,0.7556,2433.6,2433.2,7.10974]
[1728465024340,0.7556,2433.6,2433.3,4.10962]
[1728465024494,0.7556,2433.6,2433.2,4.40029839]
[1728465024698,0.7556,2433.6,2433.2,3.0]
[1728465025148,0.7556,2433.6,2433.2,7.10978]
[1728465025441,0.7556,2433.6,2433.2,4.10978]
[1728465026504,4.86475,2433.6,2433.1,4.31562287]
[1728465027738,0.7556,2433.5,2433.1,4.31562287]
[1728465029219,0.7556,2433.5,2433.1,0.20581287]
[1728465029406,0.7556,2433.4,2432.9,8.22041]
[1728465029607,0.7556,2433.4,2432.9,4.1102]
[1728465029902,0.7556,2433.4,2432.9,8.22042]
[1728465030104,0.7556,2433.4,2432.9,8.42311796]
[1728465030540,0.7556,2433.4,2433.0,4.11014]
[1728465031140,4.86512,2433.4,2432.9,4.31289796]
[1728465032147,4.86512,2433.4,2432.9,8.42312796]
[1728465032306,4.86512,2433.4,2432.9,9.74058286]
[1728465032511,4.86512,2433.4,2432.9,5.63035286]
[1728465033210,0.7556,2433.4,2433.1,4.10996]
[1728465033510,0.7556,2433.4,2433.1,4.19214989]
[1728465033704,0.7556,2433.4,2433.2,4.61149499]
[1728465035230,0.7556,2433.4,2433.2,4.10977]
[1728465038053,4.10905,2433.7,2433.2,4.10977]
[1728465038256,0.7556,2433.6,2433.2,4.10977]
[1728465038457,0.7556,2433.6,2433.2,8.21949]
[1728465038768,0.7556,2433.6,2433.3,5.94315615]
[1728465039072,0.7556,2433.8,2433.5,1.751421]
[1728465039222,0.7556,2434.0,2433.6,4.19130296]
[1728465039555,0.7556,2433.8,2433.4,9.22399761]
[1728465039760,0.7556,2433.8,2433.4,5.11462761]
[1728465039919,0.7556,2433.8,2433.5,0.51146276]
[1728465042679,4.10916,2433.6,2433.2,4.1097]
[1728465042967,4.10916,2433.6,2433.1,0.8236]
[1728465043143,4.10916,2433.6,2433.2,0.493362]
[1728465043339,4.10916,2433.6,2433.1,0.8236]
[1728465043946,4.10898,2433.7,2433.2,4.1098]
[1728465048271,4.10915,2433.6,2433.1,6.684991]
[1728465048440,4.10915,2433.6,2433.1,4.93357]
[1728465048769,4.10915,2433.6,2433.1,6.16508839]
[1728465049167,4.86451,2433.8,2433.2,4.19189539]
[1728465049368,4.10898,2433.7,2433.2,8.30157539]
[1728465049564,4.10898,2433.7,2433.2,9.27557296]
[1728465050290,4.10898,2433.7,2433.2,5.16586296]
[1728465050697,4.10899,2433.7,2433.3,0.08218256]
[1728465051006,4.10899,2433.7,2433.3,4.19180256]
[1728465051163,4.10899,2433.7,2433.3,4.10962]
[1728465051360,4.10899,2433.7,2433.3,0.08218284]
[1728465053002,8.21808,2433.7,2433.2,5.16599296]
[1728465053210,4.10899,2433.7,2433.2,5.16599296]
[1728465053501,8.21805,2433.7,2433.2,5.16599296]
[1728465054565,4.10899,2433.7,2433.2,5.16599296]
[1728465055505,8.2181,2433.7,2433.2,5.16599296]
[1728465055683,4.10899,2433.7,2433.2,4.10981]
[1728465055870,4.10913,2433.6,2433.2,4.10981]
[1728465057619,4.10913,2433.6,2433.1,6.684911]
[1728465059791,4.10913,2433.6,2433.1,4.93349]
[1728465060175,0.7556,2433.5,2433.0,4.11003]
[1728465060333,0.7556,2433.5,2433.0,5.05352829]
[1728465060492,0.7556,2433.5,2433.0,9.16359829]
[1728465061020,0.7556,2433.5,2433.1,4.10996]
[1728465062316,0.7556,2433.5,2433.2,4.1098]
[1728465062524,4.10899,2433.7,2433.3,4.10956]
[1728465062525,0.7556,2433.7,2433.3,4.10956]
[1728465062719,4.8646,2433.7,2433.2,4.8919]
[1728465063047,4.8646,2433.7,2433.2,6.06158393]
[1728465064218,4.10923,2433.6,2433.1,4.10994]
[1728465064417,4.10934,2433.5,2433.0,9.94566829]
[1728465064617,0.7556,2433.4,2433.0,9.94567829]
[1728465065110,0.7556,2433.4,2433.0,5.83561829]
[1728465065929,0.7556,2433.4,2433.0,9.94567829]
[1728465067447,0.7556,2433.4,2433.0,5.83561829]
[1728465067706,0.7556,2433.6,2433.2,4.10973]
[1728465068356,4.86453,2433.8,2433.3,4.10956]
[1728465068546,4.86453,2433.8,2433.3,4.91656]
[1728465069948,8.97346,2433.8,2433.3,4.91656]
[1728465070929,4.86453,2433.8,2433.3,4.91656]
[1728465073676,8.97278,2434.0,2433.4,4.10935]
[1728465073970,4.10863,2433.9,2433.4,4.10935]
[1728465076381,4.10863,2433.9,2433.3,6.05471426]
[1728465076673,4.10863,2433.9,2433.3,6.05465426]
[1728465076854,4.10863,2433.9,2433.3,10.16420426]
[1728465077059,4.10882,2433.8,2433.3,6.05465426]
[1728465077770,8.21771,2433.8,2433.3,6.05465426]
[1728465078078,4.10882,2433.8,2433.3,6.05465426]
[1728465078664,4.10882,2433.8,2433.3,4.9165]
[1728465078854,8.21773,2433.8,2433.3,4.9165]
[1728465079383,8.21771,2433.8,2433.3,4.9165]
[1728465079543,4.10882,2433.8,2433.3,4.9165]
[1728465083584,0.7556,2433.7,2433.3,0.807]
[1728465083878,4.86462,2433.7,2433.3,0.807]
[1728465087903,4.10902,2433.7,2433.3,0.807]
[1728465088675,4.10922,2433.6,2433.3,0.807]
[1728465089606,4.10932,2433.5,2433.1,0.7957]
[1728465091209,4.86475,2433.6,2433.1,4.90565]
[1728465092183,4.86474,2433.6,2433.1,0.7957]
[1728465092391,4.10981,2433.2,2432.9,0.7935]
[1728465093399,8.21973,2433.2,2432.9,0.7935]
[1728465093596,4.11001,2433.1,2432.9,0.7935]
[1728465094311,8.21977,2433.2,2432.9,0.7935]
[1728465094514,1.0726791,2433.2,2432.6,0.8303]
[1728465094678,4.11024,2433.0,2432.6,0.8303]
[1728465095801,4.10993,2433.2,2432.7,1.751421]
[1728465096118,4.10993,2433.2,2432.8,0.7584]
[1728465096479,0.7556,2433.3,2432.8,4.86886]
[1728465096679,4.10966,2433.3,2432.8,4.95106241]
[1728465097075,4.10966,2433.3,2432.8,5.97096512]
[1728465097312,8.21919,2433.4,2432.9,4.11032]
[1728465097520,4.22916562,2433.5,2433.0,4.95063752]
[1728465097721,0.11985562,2433.5,2433.1,1.751421]
[1728465098104,0.11985562,2433.5,2433.0,4.95063752]
[1728465098418,4.22918562,2433.5,2433.1,0.90609575]
[1728465098585,0.11985562,2433.5,2433.1,5.01606575]
[1728465098786,0.11985562,2433.5,2433.2,4.90491]
[1728465099616,0.11985562,2433.5,2433.2,4.98709858]
[1728465102699,0.11985562,2433.5,2433.2,0.87728858]
[1728465103027,0.11985562,2433.5,2433.2,6.16248311]
[1728465103330,4.22930562,2433.5,2433.2,1.97056453]
[1728465103626,8.33873562,2433.5,2433.0,0.8136]
[1728465103784,4.22928562,2433.5,2433.0,0.8136]
[1728465104128,4.10982,2433.2,2433.0,0.8136]
[1728465104303,4.10999,2433.1,2432.7,0.8136]
[1728465104917,4.86542,2433.2,2432.7,0.8136]
[1728465105094,4.11015,2433.0,2432.7,0.8136]
[1728465105878,4.11032,2432.9,2432.4,4.11116]
[1728465106126,4.11015,2433.0,2432.5,0.8136]
[1728465106301,8.22044,2433.0,2432.5,0.8136]
[1728465106479,4.11015,2433.0,2432.5,0.8136]
[1728465106686,8.22039,2433.0,2432.5,0.8136]
[1728465107115,4.11015,2433.0,2432.5,0.8136]
[1728465108788,4.11015,2433.0,2432.5,4.92455]
[1728465109124,4.11015,2433.0,2432.5,5.9692736]
[1728465110741,4.11015,2433.0,2432.5,1.8583236]
[1728465111221,4.11015,2433.0,2432.5,5.9692536]
[1728465112521,4.11015,2433.0,2432.5,6.05146399]
[1728465113428,4.11015,2433.0,2432.5,1.8583236]
[1728465113626,8.2204,2433.0,2432.5,1.8583236]
[1728465113933,4.11015,2433.0,2432.5,1.8583236]
[1728465114297,8.22044,2433.0,2432.5,1.8583236]
[1728465115100,4.11015,2433.0,2432.5,5.9692936]
[1728465115512,4.11015,2433.0,2432.5,6.05150401]